[Event "*** Titled Tuesday Blitz"]
[Site "Chess.com"]
[Date "2020.03.03"]
[Round "5"]
[White "karwowskikacper"]
[Black "DrMelekess"]
[Result "0-1"]
[WhiteElo "2397"]
[BlackElo "2730"]
[TimeControl "180+1"]
[EndTime "13:53:21 PST"]
[Termination "DrMelekess won by checkmate"]

1. e4 {[%clk 0:03:00.9]} 1... d5 {[%clk 0:02:54.5]} 2. exd5 {[%clk 0:03:00.6]}
2... Qxd5 {[%clk 0:02:55.4]} 3. Nc3 {[%clk 0:03:00.9]} 3... Qd8 {[%clk
0:02:54.1]} 4. g3 {[%clk 0:03:00.2]} 4... Nf6 {[%clk 0:02:52.5]} 5. Bg2 {[%clk
0:03:00.6]} 5... c6 {[%clk 0:02:53.4]} 6. Nge2 {[%clk 0:03:00.9]} 6... Bg4
{[%clk 0:02:45.5]} 7. O-O {[%clk 0:03:00.8]} 7... e6 {[%clk 0:02:44.9]} 8. d4
{[%clk 0:03:01]} 8... Be7 {[%clk 0:02:44.2]} 9. Bf4 {[%clk 0:02:56.6]} 9... O-O
{[%clk 0:02:43.1]} 10. Qd2 {[%clk 0:02:56.2]} 10... Nbd7 {[%clk 0:02:41.1]} 11.
Rfe1 {[%clk 0:02:53.6]} 11... Re8 {[%clk 0:02:36.5]} 12. h3 {[%clk 0:02:48.6]}
12... Bxe2 {[%clk 0:02:35.4]} 13. Qxe2 {[%clk 0:02:42.3]} 13... Nb6 {[%clk
0:02:33.3]} 14. b3 {[%clk 0:02:41.1]} 14... Qxd4 {[%clk 0:02:10.8]} 15. Be5
{[%clk 0:02:39.8]} 15... Qc5 {[%clk 0:02:09.7]} 16. a4 {[%clk 0:02:30]} 16...
Nbd5 {[%clk 0:01:58.1]} 17. Ne4 {[%clk 0:02:24.6]} 17... Nxe4 {[%clk 0:01:53.1]}
18. Bxe4 {[%clk 0:02:25.5]} 18... Bf6 {[%clk 0:01:49.8]} 19. Bxf6 {[%clk
0:01:50.3]} 19... Nxf6 {[%clk 0:01:46.2]} 20. Bf3 {[%clk 0:01:50.6]} 20... Rad8
{[%clk 0:01:37.6]} 21. a5 {[%clk 0:01:49.7]} 21... a6 {[%clk 0:01:28.5]} 22. Ra4
{[%clk 0:01:38.5]} 22... h6 {[%clk 0:01:14.6]} 23. Rea1 {[%clk 0:01:16]} 23...
Rd4 {[%clk 0:01:02.4]} 24. Rxd4 {[%clk 0:01:09.9]} 24... Qxd4 {[%clk 0:01:03.3]}
25. Rd1 {[%clk 0:01:10.8]} 25... Qc3 {[%clk 0:00:55.5]} 26. Kg2 {[%clk
0:00:48.6]} 26... Qxa5 {[%clk 0:00:54.4]} 27. c4 {[%clk 0:00:49.5]} 27... Rd8
{[%clk 0:00:52.2]} 28. Rxd8+ {[%clk 0:00:46.1]} 28... Qxd8 {[%clk 0:00:51.4]}
29. Qe5 {[%clk 0:00:47]} 29... Qe7 {[%clk 0:00:38]} 30. Qb8+ {[%clk 0:00:43.6]}
30... Kh7 {[%clk 0:00:37.5]} 31. Qf4 {[%clk 0:00:25.6]} 31... e5 {[%clk
0:00:35.7]} 32. Qf5+ {[%clk 0:00:23.4]} 32... g6 {[%clk 0:00:35.3]} 33. Qc8
{[%clk 0:00:23.2]} 33... Kg7 {[%clk 0:00:27.8]} 34. c5 {[%clk 0:00:20.2]} 34...
e4 {[%clk 0:00:26.5]} 35. Be2 {[%clk 0:00:20.5]} 35... e3 {[%clk 0:00:26.2]} 36.
f3 {[%clk 0:00:19.5]} 36... Qxc5 {[%clk 0:00:12.2]} 37. Qxb7 {[%clk 0:00:19.1]}
37... Qc1 {[%clk 0:00:09.3]} 38. Qxa6 {[%clk 0:00:18]} 38... Qe1 {[%clk
0:00:08.6]} 39. Qd3 {[%clk 0:00:17.6]} 39... Qf2+ {[%clk 0:00:07.8]} 40. Kh1
{[%clk 0:00:17.1]} 40... Qe1+ {[%clk 0:00:04.4]} 41. Kh2 {[%clk 0:00:16.3]}
41... Qf2+ {[%clk 0:00:04.2]} 42. Kh1 {[%clk 0:00:16]} 42... Nd5 {[%clk
0:00:05.1]} 43. Qd1 {[%clk 0:00:09.3]} 43... Qxg3 {[%clk 0:00:04.4]} 44. Qg1
{[%clk 0:00:08.7]} 44... Qxh3+ {[%clk 0:00:04.2]} 45. Qh2 {[%clk 0:00:09]} 45...
Qxh2+ {[%clk 0:00:05.1]} 46. Kxh2 {[%clk 0:00:09.9]} 46... f5 {[%clk 0:00:04.5]}
47. Kg3 {[%clk 0:00:09.8]} 47... f4+ {[%clk 0:00:04.7]} 48. Kg4 {[%clk
0:00:09.8]} 48... Kf6 {[%clk 0:00:05.4]} 49. Bc4 {[%clk 0:00:10.1]} 49... h5+
{[%clk 0:00:05.1]} 50. Kh3 {[%clk 0:00:10.3]} 50... Nc3 {[%clk 0:00:06]} 51. Kg2
{[%clk 0:00:10.7]} 51... g5 {[%clk 0:00:05.9]} 52. Kf1 {[%clk 0:00:11]} 52...
Ke5 {[%clk 0:00:06.2]} 53. Ke1 {[%clk 0:00:11]} 53... g4 {[%clk 0:00:06.1]} 54.
Bf7 {[%clk 0:00:09.6]} 54... gxf3 {[%clk 0:00:05.9]} 55. Bxh5 {[%clk 0:00:09.3]}
55... f2+ {[%clk 0:00:06.6]} 56. Kf1 {[%clk 0:00:09.8]} 56... Ne4 {[%clk
0:00:07.3]} 57. b4 {[%clk 0:00:10.6]} 57... Ng3+ {[%clk 0:00:05.5]} 58. Kg2
{[%clk 0:00:10.6]} 58... f1=Q+ {[%clk 0:00:06]} 59. Kh2 {[%clk 0:00:11.2]} 59...
Qh1# {[%clk 0:00:06.4]} 0-1

[Event "*** Titled Tuesday Blitz"]
[Site "Chess.com"]
[Date "2020.03.03"]
[Round "5"]
[White "Atanejhad"]
[Black "kasparicy"]
[Result "1-0"]
[WhiteElo "2588"]
[BlackElo "2358"]
[TimeControl "180+1"]
[EndTime "13:53:27 PST"]
[Termination "Atanejhad won by resignation"]

1. e4 {[%clk 0:03:00.9]} 1... c5 {[%clk 0:02:59.5]} 2. Nf3 {[%clk 0:03:00]} 2...
d6 {[%clk 0:02:59.9]} 3. d4 {[%clk 0:03:00.1]} 3... cxd4 {[%clk 0:03:00.8]} 4.
Nxd4 {[%clk 0:03:01]} 4... Nf6 {[%clk 0:03:01.3]} 5. Nc3 {[%clk 0:03:00.4]} 5...
a6 {[%clk 0:03:01.9]} 6. Be3 {[%clk 0:03:00.5]} 6... e6 {[%clk 0:03:01.8]} 7.
Qd2 {[%clk 0:02:59.5]} 7... b5 {[%clk 0:03:02.3]} 8. f3 {[%clk 0:02:59.7]} 8...
b4 {[%clk 0:03:01.2]} 9. Nce2 {[%clk 0:02:58.7]} 9... Nbd7 {[%clk 0:03:01.7]}
10. g4 {[%clk 0:02:56.3]} 10... h6 {[%clk 0:02:59.9]} 11. O-O-O {[%clk
0:02:50.9]} 11... Bb7 {[%clk 0:02:58.6]} 12. h4 {[%clk 0:02:48.7]} 12... d5
{[%clk 0:02:58.2]} 13. Bh3 {[%clk 0:02:43.8]} 13... dxe4 {[%clk 0:01:59.2]} 14.
g5 {[%clk 0:02:42.1]} 14... hxg5 {[%clk 0:01:54.3]} 15. hxg5 {[%clk 0:02:41.9]}
15... exf3 {[%clk 0:01:54.9]} 16. Nf4 {[%clk 0:02:39.3]} 16... Ne4 {[%clk
0:01:54.6]} 17. Qe1 {[%clk 0:02:29.7]} 17... Rxh3 {[%clk 0:01:51.7]} 18. Rxh3
{[%clk 0:02:26.7]} 18... Rc8 {[%clk 0:01:50.3]} 19. g6 {[%clk 0:02:26.6]} 19...
Qa5 {[%clk 0:01:33.2]} 20. gxf7+ {[%clk 0:02:25.7]} 20... Kxf7 {[%clk
0:01:30.3]} 21. Kb1 {[%clk 0:02:19.7]} 21... e5 {[%clk 0:01:04.2]} 22. Nb3
{[%clk 0:02:17.6]} 22... Qc7 {[%clk 0:00:56.7]} 23. Nd3 {[%clk 0:01:00.8]} 23...
Qxc2+ {[%clk 0:00:54.1]} 24. Ka1 {[%clk 0:01:00.9]} 24... Nef6 {[%clk
0:00:54.7]} 25. Bg5 {[%clk 0:00:23.6]} 25... Qe2 {[%clk 0:00:47.5]} 26. Bxf6
{[%clk 0:00:17.6]} 26... Qxe1 {[%clk 0:00:46]} 27. Rxe1 {[%clk 0:00:16.8]} 27...
gxf6 {[%clk 0:00:46.2]} 28. Nd2 {[%clk 0:00:15.2]} 28... Nc5 {[%clk 0:00:42]}
29. Nxb4 {[%clk 0:00:14]} 29... e4 {[%clk 0:00:38]} 30. Rh7+ {[%clk 0:00:10.6]}
30... Bg7 {[%clk 0:00:35.9]} 31. Rg1 {[%clk 0:00:10.5]} 31... Rg8 {[%clk
0:00:35.6]} 32. Nc2 {[%clk 0:00:09.9]} 32... Ne6 {[%clk 0:00:29.1]} 33. Ne3
{[%clk 0:00:09.6]} 33... Ng5 {[%clk 0:00:29.3]} 34. Rh2 {[%clk 0:00:07.8]} 34...
Bf8 {[%clk 0:00:29]} 35. Nf5 {[%clk 0:00:06.9]} 35... Bc5 {[%clk 0:00:26.2]} 36.
Rc1 {[%clk 0:00:05.9]} 36... Rc8 {[%clk 0:00:23.7]} 37. a3 {[%clk 0:00:04.9]}
37... e3 {[%clk 0:00:22.9]} 38. Nxf3 {[%clk 0:00:03.4]} 38... Nxf3 {[%clk
0:00:22.6]} 39. Rh7+ {[%clk 0:00:03.2]} 39... Ke6 {[%clk 0:00:22.8]} 40. Rxb7
{[%clk 0:00:01.7]} 40... Kxf5 {[%clk 0:00:22.9]} 41. Ka2 {[%clk 0:00:01.2]}
41... e2 {[%clk 0:00:22.6]} 42. Rb3 {[%clk 0:00:01.6]} 42... Kf4 {[%clk
0:00:20.7]} 43. Rbc3 {[%clk 0:00:01.4]} 43... e1=Q {[%clk 0:00:20.9]} 44. Rc4+
{[%clk 0:00:01.9]} 44... Kg3 {[%clk 0:00:20.6]} 45. Rxe1 {[%clk 0:00:02.8]}
45... Nxe1 {[%clk 0:00:20.9]} 46. b4 {[%clk 0:00:03.3]} 46... Nd3 {[%clk
0:00:20.1]} 47. Rc3 {[%clk 0:00:03.4]} 47... Kf2 {[%clk 0:00:17]} 48. Rxd3
{[%clk 0:00:03.4]} 48... Be3 {[%clk 0:00:17.3]} 49. Rd6 {[%clk 0:00:03.2]} 49...
f5 {[%clk 0:00:17.5]} 50. Rxa6 {[%clk 0:00:03.7]} 50... f4 {[%clk 0:00:18.1]}
51. Rc6 {[%clk 0:00:03]} 51... f3 {[%clk 0:00:18.5]} 52. Rxc8 {[%clk 0:00:02.8]}
52... Ke2 {[%clk 0:00:18.7]} 53. Rf8 {[%clk 0:00:02.5]} 53... f2 {[%clk
0:00:19.2]} 54. Kb3 {[%clk 0:00:02.6]} 54... f1=Q {[%clk 0:00:19.5]} 55. Rxf1
{[%clk 0:00:02.9]} 55... Kxf1 {[%clk 0:00:20.4]} 56. Kc4 {[%clk 0:00:03.8]}
56... Ke2 {[%clk 0:00:21.3]} 57. a4 {[%clk 0:00:04.2]} 57... Kf3 {[%clk
0:00:21.3]} 58. a5 {[%clk 0:00:04.7]} 58... Ke4 {[%clk 0:00:21.9]} 59. b5 {[%clk
0:00:05.1]} 59... Ke5 {[%clk 0:00:22.5]} 60. b6 {[%clk 0:00:03]} 60... Kd6
{[%clk 0:00:22.8]} 61. Kb5 {[%clk 0:00:03]} 61... Kd7 {[%clk 0:00:21.7]} 62. Ka6
{[%clk 0:00:02.9]} 62... Kc8 {[%clk 0:00:21.9]} 63. Ka7 {[%clk 0:00:03.2]} 63...
Bd4 {[%clk 0:00:21.6]} 64. Ka8 {[%clk 0:00:03.4]} 64... Be5 {[%clk 0:00:17.5]}
65. a6 {[%clk 0:00:02.7]} 1-0

[Event "*** Titled Tuesday Blitz"]
[Site "Chess.com"]
[Date "2020.03.03"]
[Round "5"]
[White "ChessLover0108"]
[Black "Kislov_Oleg"]
[Result "1-0"]
[WhiteElo "2769"]
[BlackElo "2546"]
[TimeControl "180+1"]
[EndTime "13:53:35 PST"]
[Termination "ChessLover0108 won by resignation"]

1. d4 {[%clk 0:03:00.9]} 1... Nf6 {[%clk 0:02:59.2]} 2. c4 {[%clk 0:03:00.4]}
2... e6 {[%clk 0:02:59.1]} 3. Nf3 {[%clk 0:02:58.9]} 3... d5 {[%clk 0:02:58.7]}
4. Nc3 {[%clk 0:02:58.4]} 4... Bb4 {[%clk 0:02:58.7]} 5. Bg5 {[%clk 0:02:55.5]}
5... h6 {[%clk 0:02:57.7]} 6. Bxf6 {[%clk 0:02:54.8]} 6... Qxf6 {[%clk
0:02:57.7]} 7. Qa4+ {[%clk 0:02:55.5]} 7... Nc6 {[%clk 0:02:56.3]} 8. e3 {[%clk
0:02:56.1]} 8... Bd7 {[%clk 0:02:51.9]} 9. Qc2 {[%clk 0:02:52.9]} 9... O-O
{[%clk 0:02:40.5]} 10. a3 {[%clk 0:02:47.9]} 10... Bxc3+ {[%clk 0:02:36.7]} 11.
Qxc3 {[%clk 0:02:48.8]} 11... dxc4 {[%clk 0:02:23.8]} 12. Bxc4 {[%clk 0:02:48]}
12... Rfe8 {[%clk 0:02:24.2]} 13. Rd1 {[%clk 0:02:40.7]} 13... Rad8 {[%clk
0:02:16]} 14. O-O {[%clk 0:02:29.8]} 14... e5 {[%clk 0:02:16.1]} 15. dxe5 {[%clk
0:02:30.7]} 15... Nxe5 {[%clk 0:02:15.3]} 16. Nxe5 {[%clk 0:02:28.7]} 16... Qxe5
{[%clk 0:02:14.2]} 17. Qb3 {[%clk 0:02:23]} 17... Be6 {[%clk 0:01:31]} 18. Bxe6
{[%clk 0:02:19.2]} 18... Qxe6 {[%clk 0:01:27.2]} 19. Qxb7 {[%clk 0:02:17.9]}
19... Rb8 {[%clk 0:01:20.6]} 20. Qxa7 {[%clk 0:02:13.1]} 20... Rxb2 {[%clk
0:01:20]} 21. Qxc7 {[%clk 0:02:11.7]} 21... Qa2 {[%clk 0:01:20.1]} 22. Ra1
{[%clk 0:01:55]} 22... Qb3 {[%clk 0:01:19.7]} 23. a4 {[%clk 0:01:54.6]} 23...
Qd5 {[%clk 0:01:05.5]} 24. a5 {[%clk 0:01:27.2]} 24... Re6 {[%clk 0:00:54.8]}
25. a6 {[%clk 0:01:09.8]} 25... Rg6 {[%clk 0:00:54.5]} 26. Qc8+ {[%clk
0:01:10.3]} 26... Kh7 {[%clk 0:00:54]} 27. Qh3 {[%clk 0:01:11.2]} 27... Rbb6
{[%clk 0:00:34.1]} 28. a7 {[%clk 0:00:54.1]} 28... Ra6 {[%clk 0:00:34.3]} 29.
Kh1 {[%clk 0:00:38.9]} 29... Rxa1 {[%clk 0:00:20.5]} 30. Rxa1 {[%clk 0:00:39.8]}
30... Ra6 {[%clk 0:00:20.6]} 31. Rg1 {[%clk 0:00:19.6]} 31... Rxa7 {[%clk
0:00:20.7]} 32. Qf3 {[%clk 0:00:18.9]} 32... Qxf3 {[%clk 0:00:20.1]} 33. gxf3
{[%clk 0:00:19.8]} 33... Ra2 {[%clk 0:00:20.4]} 34. Kg2 {[%clk 0:00:20.1]} 34...
Kg6 {[%clk 0:00:20.3]} 35. f4 {[%clk 0:00:19.7]} 35... Kf5 {[%clk 0:00:20.2]}
36. Kf3 {[%clk 0:00:20.6]} 36... g6 {[%clk 0:00:20.2]} 37. h3 {[%clk 0:00:16.3]}
37... h5 {[%clk 0:00:20.1]} 38. Rg5+ {[%clk 0:00:15.5]} 38... Kf6 {[%clk
0:00:20.2]} 39. Rb5 {[%clk 0:00:16.4]} 39... Ra1 {[%clk 0:00:20.5]} 40. Rb6+
{[%clk 0:00:15.1]} 40... Kg7 {[%clk 0:00:19.6]} 41. Kg2 {[%clk 0:00:15.8]} 41...
Ra2 {[%clk 0:00:19.6]} 42. Rb5 {[%clk 0:00:15.1]} 42... Ra4 {[%clk 0:00:19.5]}
43. h4 {[%clk 0:00:15.2]} 43... Kf6 {[%clk 0:00:19.7]} 44. Kg3 {[%clk
0:00:15.5]} 44... Ra3 {[%clk 0:00:19.4]} 45. Rb6+ {[%clk 0:00:15.2]} 45... Kg7
{[%clk 0:00:18.5]} 46. Rb2 {[%clk 0:00:15.5]} 46... Ra5 {[%clk 0:00:18.6]} 47.
Kf3 {[%clk 0:00:11.9]} 47... Kf6 {[%clk 0:00:18.9]} 48. Rb6+ {[%clk 0:00:11.5]}
48... Kg7 {[%clk 0:00:18.9]} 49. Rb3 {[%clk 0:00:11.6]} 49... Kf6 {[%clk
0:00:19]} 50. e4 {[%clk 0:00:11.7]} 50... Ra1 {[%clk 0:00:17.3]} 51. Kg2 {[%clk
0:00:06.2]} 51... Ra4 {[%clk 0:00:16.5]} 52. f3 {[%clk 0:00:06.3]} 52... Ra2+
{[%clk 0:00:16.5]} 53. Kg3 {[%clk 0:00:06.6]} 53... Ra5 {[%clk 0:00:16.7]} 54.
Rb6+ {[%clk 0:00:06.6]} 54... Kg7 {[%clk 0:00:17.1]} 55. Rd6 {[%clk 0:00:07.2]}
55... Rc5 {[%clk 0:00:17.2]} 56. Rd5 {[%clk 0:00:05.6]} 56... Rc6 {[%clk
0:00:11.5]} 57. f5 {[%clk 0:00:05.4]} 57... Kf6 {[%clk 0:00:11.2]} 58. Kf4
{[%clk 0:00:04.4]} 58... Rc1 {[%clk 0:00:09.4]} 59. fxg6 {[%clk 0:00:04.5]}
59... Kxg6 {[%clk 0:00:08.6]} 60. Rd6+ {[%clk 0:00:05.4]} 60... f6 {[%clk
0:00:08.9]} 61. e5 {[%clk 0:00:04.8]} 61... Rc4+ {[%clk 0:00:09.5]} 62. Kg3
{[%clk 0:00:03.8]} 62... Kf5 {[%clk 0:00:09.7]} 63. Rxf6+ {[%clk 0:00:04.3]}
63... Kxe5 {[%clk 0:00:09.6]} 64. Rh6 {[%clk 0:00:05]} 64... Kf5 {[%clk
0:00:09.8]} 65. Rxh5+ {[%clk 0:00:05.9]} 65... Kg6 {[%clk 0:00:10.5]} 66. Rg5+
{[%clk 0:00:06.8]} 66... Kf6 {[%clk 0:00:09.6]} 67. Rg4 {[%clk 0:00:07.7]} 67...
Rc1 {[%clk 0:00:09.8]} 68. Rf4+ {[%clk 0:00:08.6]} 68... Kg6 {[%clk 0:00:09.6]}
69. Re4 {[%clk 0:00:09.5]} 69... Rg1+ {[%clk 0:00:07.6]} 70. Kf2 {[%clk
0:00:10.1]} 70... Rh1 {[%clk 0:00:08.1]} 71. Kg2 {[%clk 0:00:10.8]} 71... Re1
{[%clk 0:00:07.7]} 72. Rxe1 {[%clk 0:00:10.5]} 1-0

[Event "*** Titled Tuesday Blitz"]
[Site "Chess.com"]
[Date "2020.03.03"]
[Round "5"]
[White "denizozen"]
[Black "Sebastian"]
[Result "0-1"]
[WhiteElo "2843"]
[BlackElo "3018"]
[TimeControl "180+1"]
[EndTime "13:53:36 PST"]
[Termination "Sebastian won by resignation"]

1. e4 {[%clk 0:03:00.9]} 1... c5 {[%clk 0:03:00.1]} 2. Nf3 {[%clk 0:03:00.7]}
2... d6 {[%clk 0:03:00.8]} 3. d4 {[%clk 0:03:00.8]} 3... cxd4 {[%clk 0:03:01.4]}
4. Nxd4 {[%clk 0:03:01.7]} 4... Nf6 {[%clk 0:03:01.9]} 5. Nc3 {[%clk 0:03:02.3]}
5... a6 {[%clk 0:03:02.5]} 6. Bg5 {[%clk 0:03:03]} 6... Nbd7 {[%clk 0:03:01.2]}
7. f4 {[%clk 0:03:02.4]} 7... Qc7 {[%clk 0:02:59.6]} 8. Qf3 {[%clk 0:02:56.3]}
8... h6 {[%clk 0:02:59.4]} 9. Bh4 {[%clk 0:02:55]} 9... g5 {[%clk 0:02:58.9]}
10. fxg5 {[%clk 0:02:53.7]} 10... hxg5 {[%clk 0:02:59.5]} 11. Bxg5 {[%clk
0:02:54.6]} 11... Qc5 {[%clk 0:02:59.9]} 12. Be3 {[%clk 0:02:41.3]} 12... Ne5
{[%clk 0:02:59.2]} 13. Qd1 {[%clk 0:02:29.8]} 13... Neg4 {[%clk 0:02:53.4]} 14.
Bg1 {[%clk 0:02:29.1]} 14... Bh6 {[%clk 0:02:29.4]} 15. Nf5 {[%clk 0:02:01.7]}
15... Qa5 {[%clk 0:02:13.7]} 16. Nxh6 {[%clk 0:02:00.7]} 16... Rxh6 {[%clk
0:02:13.2]} 17. Qd2 {[%clk 0:01:54.3]} 17... Be6 {[%clk 0:02:02.7]} 18. a3
{[%clk 0:01:42.1]} 18... Rc8 {[%clk 0:02:00.5]} 19. Bd3 {[%clk 0:01:31.9]} 19...
Rh5 {[%clk 0:01:37.6]} 20. O-O-O {[%clk 0:01:30.5]} 20... b5 {[%clk 0:01:29.7]}
21. Bd4 {[%clk 0:01:15]} 21... b4 {[%clk 0:01:29.2]} 22. Nb1 {[%clk 0:01:04.8]}
22... Ne5 {[%clk 0:00:43.6]} 23. Qxb4 {[%clk 0:00:51.5]} 23... Nxd3+ {[%clk
0:00:42.6]} 24. Rxd3 {[%clk 0:00:51.7]} 24... Qxb4 {[%clk 0:00:43.1]} 25. axb4
{[%clk 0:00:52.6]} 25... Nxe4 {[%clk 0:00:43.6]} 26. h3 {[%clk 0:00:47.4]} 26...
Rb5 {[%clk 0:00:35]} 27. Nc3 {[%clk 0:00:43.1]} 27... Nxc3 {[%clk 0:00:30.9]}
28. Bxc3 {[%clk 0:00:44]} 28... Bd5 {[%clk 0:00:19.8]} 29. Rh2 {[%clk 0:00:38]}
29... Be4 {[%clk 0:00:19.7]} 30. Re3 {[%clk 0:00:36.9]} 30... d5 {[%clk
0:00:17.8]} 31. g4 {[%clk 0:00:37.4]} 31... f6 {[%clk 0:00:17.5]} 32. h4 {[%clk
0:00:37.5]} 32... Kd7 {[%clk 0:00:16.3]} 33. h5 {[%clk 0:00:37.8]} 33... Rg8
{[%clk 0:00:15.6]} 34. h6 {[%clk 0:00:35.7]} 34... Bh7 {[%clk 0:00:15.7]} 35.
Rhe2 {[%clk 0:00:30.6]} 35... Be4 {[%clk 0:00:15.9]} 36. Rd2 {[%clk 0:00:24.4]}
36... Ke6 {[%clk 0:00:15]} 37. Rh3 {[%clk 0:00:19.1]} 37... Rbb8 {[%clk
0:00:14.8]} 38. h7 {[%clk 0:00:17.4]} 38... Rh8 {[%clk 0:00:14.9]} 39. Rdh2
{[%clk 0:00:16.6]} 39... Rbf8 {[%clk 0:00:14.1]} 40. g5 {[%clk 0:00:16.7]} 40...
Rf7 {[%clk 0:00:14.7]} 41. gxf6 {[%clk 0:00:16.2]} 41... exf6 {[%clk 0:00:15]}
42. Kd2 {[%clk 0:00:14.2]} 42... Rhxh7 {[%clk 0:00:14.4]} 43. Rxh7 {[%clk
0:00:14.4]} 43... Bxh7 {[%clk 0:00:14.5]} 44. Bd4 {[%clk 0:00:14.9]} 44... Be4
{[%clk 0:00:13.1]} 45. b3 {[%clk 0:00:15]} 45... Rg7 {[%clk 0:00:12.5]} 46. Rf2
{[%clk 0:00:14.5]} 46... Rg6 {[%clk 0:00:12]} 47. c4 {[%clk 0:00:14.3]} 47... f5
{[%clk 0:00:11.1]} 48. b5 {[%clk 0:00:14.8]} 48... axb5 {[%clk 0:00:10.4]} 49.
cxb5 {[%clk 0:00:15.7]} 49... Rg3 {[%clk 0:00:10.9]} 50. Be3 {[%clk 0:00:14.8]}
50... d4 {[%clk 0:00:10.9]} 51. Bf4 {[%clk 0:00:13.9]} 51... Rxb3 {[%clk
0:00:11]} 52. Rh2 {[%clk 0:00:12.7]} 52... Rxb5 {[%clk 0:00:09.2]} 53. Rh6+
{[%clk 0:00:12.8]} 53... Kd5 {[%clk 0:00:09.9]} 54. Rd6+ {[%clk 0:00:13]} 54...
Kc4 {[%clk 0:00:10.6]} 55. Rd8 {[%clk 0:00:13.9]} 55... Rb2+ {[%clk 0:00:10.5]}
56. Ke1 {[%clk 0:00:14.6]} 56... d3 {[%clk 0:00:05.5]} 57. Rc8+ {[%clk
0:00:12.6]} 57... Kd5 {[%clk 0:00:05.8]} 58. Rd8+ {[%clk 0:00:12.3]} 58... Ke6
{[%clk 0:00:06]} 59. Re8+ {[%clk 0:00:10.1]} 59... Kd7 {[%clk 0:00:06]} 60. Rh8
{[%clk 0:00:07.6]} 60... Re2+ {[%clk 0:00:06.4]} 61. Kd1 {[%clk 0:00:08]} 61...
Bf3 {[%clk 0:00:06.6]} 62. Kc1 {[%clk 0:00:07.1]} 62... Rc2+ {[%clk 0:00:06.9]}
63. Kb1 {[%clk 0:00:07.8]} 63... Be4 {[%clk 0:00:07.5]} 64. Rh7+ {[%clk
0:00:07]} 64... Ke6 {[%clk 0:00:08.2]} 65. Rh2 {[%clk 0:00:06.7]} 65... Rxh2
{[%clk 0:00:06.9]} 66. Bxh2 {[%clk 0:00:07.6]} 66... d2+ {[%clk 0:00:07.3]} 0-1

[Event "*** Titled Tuesday Blitz"]
[Site "Chess.com"]
[Date "2020.03.03"]
[Round "5"]
[White "Amirreza_p"]
[Black "Ba_clbaf_osed_ingo_3v21"]
[Result "0-1"]
[WhiteElo "2786"]
[BlackElo "2628"]
[TimeControl "180+1"]
[EndTime "13:53:40 PST"]
[Termination "Ba_clbaf_osed_ingo_3v21 won on time"]

1. e4 {[%clk 0:03:00.9]} 1... c5 {[%clk 0:03:00]} 2. c3 {[%clk 0:02:57.6]} 2...
d5 {[%clk 0:02:55.2]} 3. exd5 {[%clk 0:02:57]} 3... Qxd5 {[%clk 0:02:54.6]} 4.
d4 {[%clk 0:02:43.3]} 4... Nf6 {[%clk 0:02:54.7]} 5. Nf3 {[%clk 0:02:42.9]} 5...
e6 {[%clk 0:02:53.9]} 6. Be3 {[%clk 0:02:41.5]} 6... cxd4 {[%clk 0:02:51]} 7.
cxd4 {[%clk 0:02:42.4]} 7... Nc6 {[%clk 0:02:50.4]} 8. Nc3 {[%clk 0:02:42.8]}
8... Qd6 {[%clk 0:02:49.1]} 9. Bd3 {[%clk 0:02:42.9]} 9... Be7 {[%clk
0:02:49.2]} 10. O-O {[%clk 0:02:42.1]} 10... O-O {[%clk 0:02:48.8]} 11. a3
{[%clk 0:02:34.1]} 11... b6 {[%clk 0:02:46.8]} 12. Qe2 {[%clk 0:02:33.1]} 12...
Bb7 {[%clk 0:02:46.5]} 13. Rad1 {[%clk 0:02:33.7]} 13... Rfd8 {[%clk 0:02:46]}
14. Rfe1 {[%clk 0:02:33.9]} 14... Bf8 {[%clk 0:02:44.2]} 15. Bg5 {[%clk
0:02:32.1]} 15... Ne7 {[%clk 0:02:37.2]} 16. Ne5 {[%clk 0:02:28.2]} 16... Ng6
{[%clk 0:02:34.7]} 17. Ne4 {[%clk 0:01:35.6]} 17... Bxe4 {[%clk 0:02:23]} 18.
Bxe4 {[%clk 0:01:34.2]} 18... Rac8 {[%clk 0:02:22.6]} 19. h4 {[%clk 0:01:16.9]}
19... Be7 {[%clk 0:02:19.5]} 20. h5 {[%clk 0:01:15.5]} 20... Nxe4 {[%clk
0:02:06]} 21. Bxe7 {[%clk 0:00:57.9]} 21... Nxe7 {[%clk 0:02:06.9]} 22. Qxe4
{[%clk 0:00:57.3]} 22... Qd5 {[%clk 0:01:53.6]} 23. Qf4 {[%clk 0:00:56.6]} 23...
f6 {[%clk 0:01:44.3]} 24. Nf3 {[%clk 0:00:54.8]} 24... Kf7 {[%clk 0:01:29.5]}
25. h6 {[%clk 0:00:51.7]} 25... g5 {[%clk 0:01:27.4]} 26. Qg4 {[%clk 0:00:43.7]}
26... Ng6 {[%clk 0:01:26.1]} 27. Rd3 {[%clk 0:00:38.9]} 27... Rc4 {[%clk
0:01:21]} 28. Rde3 {[%clk 0:00:37.6]} 28... Rc6 {[%clk 0:01:17.8]} 29. g3 {[%clk
0:00:21.7]} 29... Rdd6 {[%clk 0:01:11.8]} 30. Rd3 {[%clk 0:00:10.7]} 30... Rc2
{[%clk 0:01:09.8]} 31. Nd2 {[%clk 0:00:10.3]} 31... Qf5 {[%clk 0:01:00.6]} 32.
Qxf5 {[%clk 0:00:07.1]} 32... exf5 {[%clk 0:01:01.5]} 33. b4 {[%clk 0:00:06.7]}
33... Ne5 {[%clk 0:00:53.3]} 34. Rde3 {[%clk 0:00:05.4]} 34... Rxd4 {[%clk
0:00:53.1]} 35. Nf1 {[%clk 0:00:05.1]} 35... Kg6 {[%clk 0:00:45.1]} 36. R3e2
{[%clk 0:00:05]} 36... Nf3+ {[%clk 0:00:43.3]} 37. Kg2 {[%clk 0:00:05]} 37...
Nxe1+ {[%clk 0:00:43.7]} 38. Rxe1 {[%clk 0:00:05.9]} 38... Kxh6 {[%clk 0:00:43]}
39. Ne3 {[%clk 0:00:05.2]} 39... Rdd2 {[%clk 0:00:25.1]} 40. Nxc2 {[%clk
0:00:05.3]} 40... Rxc2 {[%clk 0:00:24]} 41. Re7 {[%clk 0:00:06.2]} 41... a5
{[%clk 0:00:20.3]} 42. Re6 {[%clk 0:00:06.4]} 42... Kg6 {[%clk 0:00:19.9]} 43.
Rxb6 {[%clk 0:00:06.4]} 43... axb4 {[%clk 0:00:20.2]} 44. Rxb4 {[%clk
0:00:07.1]} 44... h5 {[%clk 0:00:19.8]} 45. a4 {[%clk 0:00:08]} 45... Ra2 {[%clk
0:00:19.6]} 46. Rc4 {[%clk 0:00:06.1]} 46... g4 {[%clk 0:00:19.2]} 47. Rb4
{[%clk 0:00:06.4]} 47... Kg5 {[%clk 0:00:19.4]} 48. Rc4 {[%clk 0:00:06.9]} 48...
h4 {[%clk 0:00:19.7]} 49. gxh4+ {[%clk 0:00:07.1]} 49... Kxh4 {[%clk 0:00:20.3]}
50. Rb4 {[%clk 0:00:07]} 50... Kg5 {[%clk 0:00:20.7]} 51. Kg1 {[%clk 0:00:06.7]}
51... f4 {[%clk 0:00:20.7]} 52. Rc4 {[%clk 0:00:07.2]} 52... f5 {[%clk
0:00:20.9]} 53. Rb4 {[%clk 0:00:07.4]} 53... g3 {[%clk 0:00:18.7]} 54. f3 {[%clk
0:00:02.5]} 54... Kh4 {[%clk 0:00:16.7]} 55. Rxf4+ {[%clk 0:00:02.1]} 55... Kh3
{[%clk 0:00:17]} 0-1